Cogmind - Beta 13 @@@ ROGUE MODE // 2024.04.16 @ 21:30:14 Player: blackdogzx Result: Destroyed by G-34 Mercenary with Small Laser Performance ------------- Evolutions (0) 0 Regions Visited (1) 200 Robots Destroyed (20) 100 Value Destroyed (448) 448 Prototype IDs (3) 60 Alien Tech Used (0) 0 Bonus (0) 0 TOTAL SCORE: 808 Bonus ------- None Cogmind --------- Core Integrity 0/250 Matter 214/300 Energy 246/250 System Corruption 2% Temperature Cool (8) Movement Walking (120) Location -10/Materials Parts ------- > --- POWER (1) -------- Ion Engine > --- PROPULSION (2) --- Aluminum Leg Aluminum Leg > --- UTILITY (2) ------ Sensor Array Signal Interpreter > --- WEAPON (2) ------- Light Assault Rifle > --- INVENTORY (5) ---- Small Storage Unit Visual Processing Unit Sensor Array Peak State ------------ > --- POWER ------------ Ion Engine > --- PROPULSION ------- Aluminum Leg Aluminum Leg > --- UTILITY ---------- Small Storage Unit Sensor Array > --- WEAPON ----------- Beam Cannon Light Assault Rifle > --- INVENTORY -------- Light Ion Engine Aluminum Leg Light Assault Rifle Light Assault Rifle [Rating: 7] Favorites ----------- Power Light Ion Engine Engine Light Ion Engine Propulsion Aluminum Leg Leg Aluminum Leg Utility Small Storage Unit Device Sensor Array Storage Small Storage Unit Processor Signal Interpreter Weapon Light Assault Rifle Energy Cannon Beam Cannon Ballistic Gun Light Assault Rifle Launcher Grenade Launcher Build | -11 -10 ------- Run | Yrd Mat Slots Evolved . | . . Power . | . . Propulsion . | . . Utility . | . . Weapon . | . . Parts Attached 26 | 6 20 Power 5 | 1 4 Engine 5 | 1 4 Core . | . . Reactor . | . . Propulsion 9 | 2 7 Treads . | . . Leg 9 | 2 7 Wheel . | . . Hover . | . . Flight . | . . Utility 4 | 1 3 Device 2 | . 2 Storage 1 | 1 . Processor 1 | . 1 Hackware . | . . Protection . | . . Artifact . | . . Weapon 8 | 2 6 Energy Gun . | . . Energy Cannon 1 | . 1 Ballistic Gun 6 | 2 4 Ballistic Cannon . | . . Launcher 1 | . 1 Special Weapon . | . . Impact Weapon . | . . Slashing Weapon . | . . Piercing Weapon . | . . Special Melee Weapon . | . . Unidentified Prototypes . | . . Parts Lost 4 | . 4 Power 2 | . 2 Propulsion . | . . Utility . | . . Weapon 2 | . 2 Highest Loss Streak 2 | . 2 To Critical Strikes . | . . Average Slot Usage (%) 96 | . 96 Engine 13 | . 13 Leg 27 | . 27 Device 12 | . 12 Storage 4 | . 4 Processor 9 | . 9 Energy Cannon 6 | . 6 Ballistic Gun 20 | . 20 Naked Turns . | . . Heaviest Build 15 | 10 15 Greatest Support 20 | 20 20 Greatest Overweight (x) 1 | 1 . Average Overweight (x) . | . . Largest Inventory Capacity 8 | 8 8 Average Capacity 7 | 7 5 Most Carried 5 | . 5 Average Carried 1 | . 3 Final Capacity 8 | 8 5 Final Carried 3 | . 3 Class Distribution -------------------- 71% | Mutant 28% | Scavenger-Mutant Dominant Class ---------------- Scavenger-Mutant | -10/Materials Resources | -11 -10 ----------- Run | Yrd Mat Matter Collected 535 | 225 310 Remotely . | . . Salvage Created 591 | . 591 Parts 39 | . 39 Haulers Intercepted 1 | . 1 Recyclers Shooed 1 | . 1 Parts Field Recycled . | . . Retrieved Matter . | . . Parts Self-Destructed . | . . Prevented . | . . Kills | -11 -10 ------- Run | Yrd Mat Combat Hostiles Destroyed 16 | . 16 Guns 11 | . 11 Cannons 4 | . 4 AOE 1 | . 1 Classes Destroyed 5 | . 5 Worker 1 | . 1 Hauler 1 | . 1 Watcher 2 | . 2 Swarmer 6 | . 6 Grunt 10 | . 10 Best Kill Streak 6 | . 6 Combat Bots Only 6 | . 6 Max Kills in Single Turn 2 | . 2 Gunslinging . | . . Exploded 1 | . 1 Melee . | . . Uniques/NPCs Destroyed . | . . Combat | -11 -10 -------- Run | Yrd Mat Hostile Shots Fired 124 | . 124 Missed 30 | . 30 Damage Taken 1067 | . 1067 Core 250 | . 250 Absorbed by Shields . | . . Regen/Repaired (Parts) 162 | . 162 Core Remaining (%) 100 | 100 . Volleys Fired 81 | . 81 Largest 2 | . 2 Hottest 80 | . 80 Shots Fired 138 | . 138 Gun 113 | . 113 Cannon 20 | . 20 Launcher 5 | . 5 Special . | . . Kinetic 113 | . 113 Thermal 20 | . 20 Explosive 5 | . 5 Electromagnetic . | . . Robot Hit Streak 10 | . 10 Robot Miss Streak 5 | . 5 Penetration Max . | . . Secondary Targets 1 | . 1 Max Gunslinging Chain 1 | . 1 Shots Hit Robots 77 | . 77 Core Hits 32 | . 32 Critical Kills 1 | . 1 Critical Parts Destroyed . | . . Critical Strikes 1 | . 1 Destroy 1 | . 1 Melee Attacks . | . . Impact . | . . Slashing . | . . Piercing . | . . Sneak Attacks . | . . Combat Hostiles . | . . Follow-up Attacks . | . . Damage Inflicted 914 | . 914 Guns 529 | . 529 Cannons 227 | . 227 Explosions 158 | . 158 Melee . | . . Ramming . | . . Kinetic 529 | . 529 Thermal 227 | . 227 Explosive 158 | . 158 Electromagnetic . | . . Impact . | . . Slashing . | . . Piercing . | . . Highest Corruption 2 | . 2 Average Corruption 1 | . 1 Corruption Purged . | . . Corruption Blocked . | . . Effects 3 | . 3 Matter Fused 2 | . 2 Alerts 1 | . 1 Overload Shots . | . . Overflow Damage 30 | . 30 Projectiles 30 | . 30 Explosions . | . . Melee . | . . Knockbacks . | . . Impact . | . . Kinetic . | . . Secondary . | . . Self-Inflicted Damage 39 | . 39 Shots 2 | . 2 Rammed . | . . Targets Rammed . | . . Kicked . | . . Crushed . | . . Highest Temperature 280 | . 280 Average Temperature 70 | . 70 Received Heat Transfer 375 | . 375 Siege Activations . | . . Robots Corrupted . | . . Combat Hostiles . | . . Parts Fried . | . . Impact Corruptions . | . . Robots Melted . | . . Combat Hostiles . | . . Parts Melted 1 | . 1 Heat Transferred 481 | . 481 Parts Sabotaged . | . . Parts Stolen . | . . Parts Stripped . | . . Power Chain Reactions . | . . Alert | -11 -10 ------- Run | Yrd Mat Peak Influence 199 | . 199 Initial . | . . Average 25 | . 76 Maximum Alert Level . | . . Low Security (%) 100 | 100 100 Level 1 . | . . Level 2 . | . . Level 3 . | . . Level 4 . | . . Level 5 . | . . High Security . | . . Max Security . | . . Squads Dispatched 5 | . 5 Investigation 5 | . 5 Extermination . | . . Reinforcement . | . . Assault . | . . Garrison . | . . Intercept . | . . Searches Triggered . | . . Construction Impeded . | . . Haulers Reinforced . | . . Active Scanning Responses . | . . Cargo Convoy Interrupts . | . . Stealth | -11 -10 --------- Run | Yrd Mat Distress Signals . | . . Communications Jammed . | . . Distress Signals . | . . Times Spotted 31 | . 31 Peak Tracking Total 6 | . 6 Tactical Retreats 2 | . 2 Traps | -11 -10 ------- Run | Yrd Mat Traps Triggered 6 | . 6 Indirectly . | . . Trap Hack Attempts . | . . Triggered . | . . Disarmed . | . . Reprogrammed . | . . Reused . | . . Traps Extracted . | . . Installed . | . . Triggered . | . . Machines | -11 -10 ---------- Run | Yrd Mat Machines Disabled . | . . Max in Single Turn . | . . Machines Repaired . | . . Machines Dismantled . | . . Machines Sabotaged . | . . Overloaded Fab Kills . | . . Hacking | -11 -10 --------- Run | Yrd Mat Machines Accessed 7 | . 7 Terminals 6 | . 6 Fabricators . | . . Repair Stations 1 | . 1 Recycling Units . | . . Scanalyzers . | . . Garrison Access . | . . Total Hacks 39 | . 39 Successful 26 | . 26 Failed 13 | . 13 Catastrophic 1 | . 1 Database Lockouts . | . . Manual . | . . Terminals 31 | . 31 Fabricators . | . . Repair Stations 8 | . 8 Recycling Units . | . . Scanalyzers . | . . Garrison Access . | . . Terminal Hacks 20 | . 20 Record 11 | . 11 Robot Analysis 1 | . 1 Prototype ID Bank 2 | . 2 Emergency Access Points 1 | . 1 Alert Level 1 | . 1 Unreport Threat 1 | . 1 Locate Traps 1 | . 1 Dispatch Records 1 | . 1 Zone Layout 1 | . 1 Fabricator Hacks . | . . Repair Station Hacks 6 | . 6 Scan Component 3 | . 3 Repair 3 | . 3 Recycling Unit Hacks . | . . Scanalyzer . | . . Garrison Access Hacks . | . . Unauthorized Hacks . | . . Terminals . | . . Fabricators . | . . Repair Stations . | . . Recycling Units . | . . Scanalyzers . | . . Garrison Access . | . . Data Cores Recovered . | . . Used . | . . Hacking Detections 7 | . 7 Full Trace Events 4 | . 4 Feedback Events 1 | . 1 Corruption 1 | . 1 Feedback Blocked . | . . Robot Schematics Acquired . | . . Robots Built . | . . Authchips . | . . Time . | . . Total Robot Build Rating . | . . Part Schematics Acquired . | . . Parts Built . | . . Authchips . | . . Time . | . . Total Part Build Rating . | . . Parts Repaired 3 | . 3 Time 78 | . 78 Parts Recycled . | . . Recycled Matter . | . . Retrieved Matter . | . . Retrieved Components . | . . Parts Scanalyzed . | . . Part Schematics Acquired . | . . Parts Damaged . | . . Bothacking | -11 -10 ------------ Run | Yrd Mat Used RIF Installer . | . . Robots Hacked . | . . Non-combat . | . . Combat . | . . Robot Hacks Applied . | . . Relay Couplers Released . | . . Fabnet Peak Effective % . | . . Robots Rewired . | . . Allies Hacked . | . . Hacks Repelled . | . . Allies | -11 -10 -------- Run | Yrd Mat Total Allies . | . . Largest Group . | . . Highest-Rated Group . | . . Highest-Rated Ally . | . . Total Orders . | . . Ally Attacks . | . . Total Damage . | . . Kills . | . . Allies Corrupted . | . . Allies Melted . | . . Intel | -11 -10 ------- Run | Yrd Mat Robot Analysis Total 1 | . 1 Derelict Logs Recovered . | . . Drone Launches . | . . Drone Recoveries . | . . Exploration | -11 -10 ------------- Run | Yrd Mat Turns Passed 4112 | 2752 1360 Spaces Moved 1536 | 768 768 Core 4 | 4 . Treads . | . . Legs 1532 | 764 768 Wheels . | . . Hover . | . . Flight . | . . Fastest Speed 50 | 50 120 Average Speed 119 | 119 120 Slowest Speed 120 | 120 120 Overloaded Moves . | . . Propulsion Burnouts . | . . Robots Hopped . | . . Cave-ins Triggered . | . . Exploration Rate (%) 80 | 68 92 Regions Visited 1 Branch Regions . Pre-discovered Areas . | . . Known Exits Taken . | . . Unknown Exits Taken 1 | 1 . Scrap Searched . | . . Spaces Dug . | . . Terrain Destroyed 36 | . 36 Melee . | . . Projectile . | . . AOE 36 | . 36 Terrain Rammed . | . . Walls Destroyed . | . . Machines Disabled . | . . Actions | -11 -10 --------- Run | Yrd Mat Total 3684 | 2596 1088 Wait 2027 | 1823 204 Move 1535 | 767 768 Hop . | . . Pick Up 5 | . 5 Fast Attach 12 | 6 6 Attach 2 | . 2 Detach 1 | . 1 Swap 12 | . 12 Drop 9 | . 9 Fire 81 | . 81 Melee . | . . Ram . | . . Kick . | . . Crush . | . . Escape Stasis . | . . Rewire . | . . Trap . | . . Miscellaneous . | . . Route ------- -11/Scrapyard -10/Materials (discovered 5 exits: *Mat x3 / *Min x2) History --------- Turn | Location | Event 17 | -11/Scrapyard | Discovered new exit (range 16) 2753 | -11/Scrapyard | Entered Materials 2754 | -10/Materials | Build established: Mutant 3174 | -10/Materials | Discovered new exit (range 13) 3214 | -10/Materials | Discovered new exit (range 7) 3220 | -10/Materials | Identified exit to Mines 3243 | -10/Materials | Build established: Scavenger-Mutant 3483 | -10/Materials | Core integrity fell below 50% 3528 | -10/Materials | Discovered exit to Mines (range 16) 3550 | -10/Materials | Discovered new exit (range 15) 3617 | -10/Materials | Core integrity fell below 20% 3627 | -10/Materials | Identified exit to Materials 4009 | -10/Materials | Repaired Lgt. Assault Rifle 4037 | -10/Materials | Repaired Aluminum Leg 4064 | -10/Materials | Repaired Lgt. Assault Rifle? 4098 | -10/Materials | Discovered exit to Materials (range 15) 4113 | -10/Materials | Destroyed by G-34 Mercenary with Small Laser Last Messages --------------- 04083_ U-05 Engineer builds a Wall. 04087_ U-05 Engineer lays Concrete. 04088_ U-05 Engineer builds a Wall. 04090_ System corrupted: Matter fused (-8). 04098_ EXIT=FOUND: MATERIALS 04103_ Connecting with Terminal... >>Prototypes Downloading prototype IDs... Imp. EM Shotgun Imp. Assault Rifle >>Access(Emergency) Found 2 emergency access doors: (3,49) (3,55) Map updated. 04103_ ALERT: Suspicious activity at Terminal M007. Dispatching Investigation squad. 04104_ The unstable cave ceiling collapses. 04107_ Grenade Launcher destroyed. 04111_ K-01 Serf collects debris. Map ----- +----------------------------------------------------+ | ??????????????????# % # #??? | | ??????????????????# ! ! # #??? | | ??????????????????# # #??? | | ????###################### #??? | | ????# # # # #??? | | ????# T" # # """"" # #??? | | ????# " + # """"" + #??? | | ????# #"" # """"" # #??? | | ????# #"Y # # #??? | | ????### "" # # #??? | | ?????# =# " " # #??? | | ###### k ##### "R" # #??? | | # x + """ # #??? | | # # ############## #??? | | # ##?????????## #??? | | # # #??????????## #??? | | # # ## ######??????## ##?? | | # # ##### ####### #?? | | # # #?# #?? | | # + #?# #?? | | # # #?# #?? | | # # ### ##### #?? | | # # T##### #??####+##### | | # # ##???# #??# # | | ###+### ##???# #??# """"" + | | ?????# @ #???#### #??# """"" # | | ?????# #??????# #### """"" # | | ?????# #??????# + """"" # | | ?????# #??????###### """"" # | | ?????# #???????????# """"" # | | ???+?## ##???????????# """"" # | | ??????# #????????????# # | | ??????# #????????????########## | | ??????+ #?????????????????????? | | ??????# #?????????????????????? | | ??????# g #?????????????????????? | | ??????# #?????????????????????? | | ??????#####?????????????????????? | | ????????????????????????????????? | | ????????????????????????????????? | | ????????????????????????????????? | | ????????????????????????????????? | | ????????????????????????????????? | | ????????????????????????????????? | | ????????????????????????????????? | | ????????????????????????????????? | | ????????????????????????????????? | | ????????????????????????????????? | | ????????????????????????????????? | | ????????????????????????????????? | +----------------------------------------------------+ Best States ------------- Heat Dissipation 25 Energy Generation 10 Energy Capacity 250 Matter Stores 300 Matter Capacity 300 Sight Range 16 Robot Scan Range 14 Terrain Scan Density 10 Evasion (%) 55 Item Schematics ----------------- None Robot Schematics ------------------ None Fabricated ------------ Nothing Alien Tech Used ----------------- None Achievements -------------- Loot Pinata Challenges ------------ None Game ------ Seed alphaworld01 Manual? 1 Play Time 00:25:21 Cumulative 10.9 hours Start 2024.04.16 @ 21:05:08 End 2024.04.16 @ 21:30:14 Sessions 1 Manual Loads 0 Difficulty Rogue Special Mode None Game No. 12 Rogue 12 Adventurer 0 Explorer 0 Win Type - Total 0 Types 0/0/0/0/0/0/0/0/0 Lore% 10 Gallery% 15 Achievement% 14 Wizard Run 0 Options --------- Layout 0 ASCII 0 Keyboard 1 Movement Numpad Keybinds 0 Fullscreen 1 Font 18/TerminusBold Map View 76x50 Zoom Use 31% Tactical HUD 1 Map Filters NONE Filters NONE Steam 1 RUN: abd748e8-a489-4881-a59f-17219e91330a